[Event "*** Qualifier 1: Titled Tuesday 3|2 Blitz"]
[Site "Chess.com"]
[Date "2017.04.04"]
[Round "1"]
[White "dhanushbharadwaj"]
[Black "Outsmiter"]
[Result "1-0"]
[WhiteElo "2449"]
[BlackElo "2108"]
[TimeControl "180+2"]
[EndTime "13:06:06 PDT"]
[Termination "dhanushbharadwaj won by resignation"]

1. Nf3 {[%clk 0:03:02]} 1... Nf6 {[%clk 0:03:00.2]} 2. c4 {[%clk 0:03:02]} 2...
g6 {[%clk 0:03:00.8]} 3. b4 {[%clk 0:03:01.2]} 3... Bg7 {[%clk 0:03:01.6]} 4.
Bb2 {[%clk 0:02:58.9]} 4... O-O {[%clk 0:03:02.5]} 5. g3 {[%clk 0:02:59.3]} 5...
c6 {[%clk 0:03:02.1]} 6. Bg2 {[%clk 0:02:59.6]} 6... d5 {[%clk 0:03:01.6]} 7.
cxd5 {[%clk 0:02:59.6]} 7... cxd5 {[%clk 0:03:03.5]} 8. O-O {[%clk 0:02:58.9]}
8... b6 {[%clk 0:02:55.6]} 9. d3 {[%clk 0:02:58.7]} 9... Bb7 {[%clk 0:02:56.4]}
10. Nbd2 {[%clk 0:02:59.9]} 10... Nbd7 {[%clk 0:02:55.8]} 11. Rc1 {[%clk
0:03:00.2]} 11... Qb8 {[%clk 0:02:48.4]} 12. Qb3 {[%clk 0:02:57.7]} 12... e6
{[%clk 0:02:47]} 13. Rfd1 {[%clk 0:02:52.4]} 13... Rc8 {[%clk 0:02:47.2]} 14.
Rxc8+ {[%clk 0:02:46.9]} 14... Qxc8 {[%clk 0:02:49.1]} 15. e4 {[%clk 0:02:46.5]}
15... dxe4 {[%clk 0:02:46.2]} 16. Nxe4 {[%clk 0:02:43.8]} 16... Bd5 {[%clk
0:02:27.7]} 17. Qa4 {[%clk 0:02:33.1]} 17... Qb7 {[%clk 0:02:20.7]} 18. Bxf6
{[%clk 0:02:19.5]} 18... Nxf6 {[%clk 0:02:22.6]} 19. Nfd2 {[%clk 0:02:15.7]}
19... Rd8 {[%clk 0:02:15.4]} 20. Nxf6+ {[%clk 0:02:12.4]} 20... Bxf6 {[%clk
0:02:17.3]} 21. Bxd5 {[%clk 0:02:13.1]} 21... Rxd5 {[%clk 0:02:16.3]} 22. Ne4
{[%clk 0:02:11.1]} 22... Bd4 {[%clk 0:02:07.6]} 23. Rc1 {[%clk 0:01:57.4]} 23...
Kg7 {[%clk 0:02:04.8]} 24. Qe8 {[%clk 0:01:47.8]} 24... Qd7 {[%clk 0:02:04.8]}
25. Qa8 {[%clk 0:01:40]} 25... f5 {[%clk 0:01:33]} 26. Ng5 {[%clk 0:01:39.1]}
26... Bf6 {[%clk 0:01:28.1]} 27. Rc7 {[%clk 0:01:37.6]} 27... Bxg5 {[%clk
0:01:24.4]} 28. Rxd7+ {[%clk 0:01:38.3]} 28... Rxd7 {[%clk 0:01:26.3]} 29. d4
{[%clk 0:01:34]} 29... Bf6 {[%clk 0:01:20.8]} 30. Qc6 {[%clk 0:01:29.2]} 30...
Rxd4 {[%clk 0:01:17.4]} 31. Qxe6 {[%clk 0:01:26.9]} 31... Rxb4 {[%clk
0:01:15.5]} 32. Qd7+ {[%clk 0:01:27.5]} 32... Kh6 {[%clk 0:01:15.3]} 33. Qd2+
{[%clk 0:01:27.7]} 1-0

[Event "*** Qualifier 1: Titled Tuesday 3|2 Blitz"]
[Site "Chess.com"]
[Date "2017.04.04"]
[Round "1"]
[White "rithwik2002"]
[Black "GMOratovsky"]
[Result "0-1"]
[WhiteElo "1799"]
[BlackElo "2350"]
[TimeControl "180+2"]
[EndTime "13:06:08 PDT"]
[Termination "GMOratovsky won by resignation"]

1. d4 {[%clk 0:03:00]} 1... d6 {[%clk 0:02:56.3]} 2. Bf4 {[%clk 0:02:37.6]} 2...
g6 {[%clk 0:02:54.5]} 3. Nc3 {[%clk 0:02:37.3]} 3... Bg7 {[%clk 0:02:54.5]} 4.
Nf3 {[%clk 0:02:36.6]} 4... Nf6 {[%clk 0:02:50.4]} 5. e4 {[%clk 0:02:37.2]} 5...
O-O {[%clk 0:02:51.9]} 6. Qd2 {[%clk 0:02:36.9]} 6... c6 {[%clk 0:02:51.3]} 7.
O-O-O {[%clk 0:02:37]} 7... b5 {[%clk 0:02:52.5]} 8. h4 {[%clk 0:02:30.3]} 8...
h5 {[%clk 0:02:51.5]} 9. Bd3 {[%clk 0:02:19.6]} 9... b4 {[%clk 0:02:46.7]} 10.
Ne2 {[%clk 0:02:17.3]} 10... a5 {[%clk 0:02:45.6]} 11. Ng3 {[%clk 0:02:07.2]}
11... Qb6 {[%clk 0:02:31.4]} 12. Bh6 {[%clk 0:01:50.4]} 12... Bxh6 {[%clk
0:02:22]} 13. Qxh6 {[%clk 0:01:50.7]} 13... Ng4 {[%clk 0:02:23.5]} 14. Qd2
{[%clk 0:01:21.3]} 14... a4 {[%clk 0:02:22]} 15. e5 {[%clk 0:01:16.1]} 15... b3
{[%clk 0:02:20.3]} 16. a3 {[%clk 0:01:02.6]} 16... bxc2 {[%clk 0:02:19.3]} 17.
Qxc2 {[%clk 0:01:03.3]} 17... Qb3 {[%clk 0:02:13.7]} 18. Bxg6 {[%clk 0:00:49.5]}
18... Qxc2+ {[%clk 0:02:11.4]} 19. Bxc2 {[%clk 0:00:49.9]} 19... Nxf2 {[%clk
0:02:12.9]} 20. Rhf1 {[%clk 0:00:46.4]} 20... Nxd1 {[%clk 0:02:13.6]} 21. Kxd1
{[%clk 0:00:40.5]} 21... Bg4 {[%clk 0:02:14.6]} 22. Kd2 {[%clk 0:00:39.4]} 22...
Nd7 {[%clk 0:02:10.7]} 23. exd6 {[%clk 0:00:28]} 23... exd6 {[%clk 0:02:11.2]}
24. Ng5 {[%clk 0:00:28.5]} 24... Rab8 {[%clk 0:02:10.3]} 25. Nf5 {[%clk
0:00:22.9]} 25... Bxf5 {[%clk 0:02:04.2]} 26. Bxf5 {[%clk 0:00:22.5]} 26...
Rxb2+ {[%clk 0:02:02.2]} 27. Kc1 {[%clk 0:00:21.9]} 27... Rfb8 {[%clk
0:02:03.1]} 28. Bxd7 {[%clk 0:00:21.7]} 28... Rb1+ {[%clk 0:02:04]} 29. Kd2
{[%clk 0:00:22.8]} 29... Rxf1 {[%clk 0:02:05.9]} 0-1

[Event "*** Qualifier 1: Titled Tuesday 3|2 Blitz"]
[Site "Chess.com"]
[Date "2017.04.04"]
[Round "1"]
[White "silverback96"]
[Black "Grebeniuk-S"]
[Result "0-1"]
[WhiteElo "2091"]
[BlackElo "2432"]
[TimeControl "180+2"]
[EndTime "13:06:10 PDT"]
[Termination "Grebeniuk-S won on time"]

1. d4 {[%clk 0:03:02]} 1... f5 {[%clk 0:02:59.1]} 2. Bg5 {[%clk 0:03:00.4]} 2...
g6 {[%clk 0:02:59.5]} 3. Nc3 {[%clk 0:02:58.9]} 3... Nh6 {[%clk 0:03:00.1]} 4.
e4 {[%clk 0:02:54.6]} 4... Nf7 {[%clk 0:02:59.1]} 5. Bf4 {[%clk 0:02:49.8]} 5...
fxe4 {[%clk 0:02:56.9]} 6. Nxe4 {[%clk 0:02:51.7]} 6... d5 {[%clk 0:02:57.9]} 7.
Ng3 {[%clk 0:02:48.4]} 7... Bg7 {[%clk 0:02:58.4]} 8. h4 {[%clk 0:02:39.6]} 8...
c5 {[%clk 0:02:47.6]} 9. Nf3 {[%clk 0:02:23.3]} 9... Bg4 {[%clk 0:02:44.5]} 10.
h5 {[%clk 0:02:04.3]} 10... O-O {[%clk 0:02:41.8]} 11. hxg6 {[%clk 0:02:04.2]}
11... hxg6 {[%clk 0:02:43.7]} 12. Qd3 {[%clk 0:01:54.1]} 12... Qb6 {[%clk
0:02:35]} 13. dxc5 {[%clk 0:01:39.4]} 13... Qxb2 {[%clk 0:02:30.2]} 14. Rc1
{[%clk 0:01:24.8]} 14... Nh8 {[%clk 0:02:11.4]} 15. Qxd5+ {[%clk 0:01:24.9]}
15... e6 {[%clk 0:02:12.5]} 16. Qc4 {[%clk 0:01:11.8]} 16... Nc6 {[%clk
0:01:42.9]} 17. Bd3 {[%clk 0:00:04.1]} 17... Nd4 {[%clk 0:01:34.6]} 18. Nxd4
{[%clk 0:00:03.5]} 18... Rxf4 {[%clk 0:01:34.9]} 0-1

[Event "*** Qualifier 1: Titled Tuesday 3|2 Blitz"]
[Site "Chess.com"]
[Date "2017.04.04"]
[Round "1"]
[White "AlexanderL"]
[Black "HovmoellerHest"]
[Result "1-0"]
[WhiteElo "2533"]
[BlackElo "2219"]
[TimeControl "180+2"]
[EndTime "13:06:16 PDT"]
[Termination "AlexanderL won on time"]

1. e4 {[%clk 0:03:02]} 1... c5 {[%clk 0:03:00.6]} 2. Nc3 {[%clk 0:03:01.6]} 2...
Nc6 {[%clk 0:02:58.8]} 3. Bb5 {[%clk 0:03:01]} 3... Nd4 {[%clk 0:02:56.7]} 4.
Bc4 {[%clk 0:03:01.6]} 4... d6 {[%clk 0:02:50.2]} 5. Nf3 {[%clk 0:02:59.7]} 5...
e5 {[%clk 0:02:36.1]} 6. O-O {[%clk 0:02:53.6]} 6... Be6 {[%clk 0:02:21.3]} 7.
d3 {[%clk 0:02:49.4]} 7... a6 {[%clk 0:02:06.4]} 8. Nxd4 {[%clk 0:02:45.4]} 8...
cxd4 {[%clk 0:01:50.1]} 9. Nd5 {[%clk 0:02:46.1]} 9... Ne7 {[%clk 0:01:38.4]}
10. f4 {[%clk 0:02:47.1]} 10... b5 {[%clk 0:01:22.8]} 11. Bb3 {[%clk 0:02:45.5]}
11... Bxd5 {[%clk 0:01:15.1]} 12. exd5 {[%clk 0:02:44.9]} 12... f6 {[%clk
0:00:59.1]} 13. c3 {[%clk 0:02:19]} 13... dxc3 {[%clk 0:00:55.7]} 14. bxc3
{[%clk 0:02:20]} 14... Qb6+ {[%clk 0:00:43]} 15. Kh1 {[%clk 0:02:20.2]} 15...
Rc8 {[%clk 0:00:42.7]} 16. Bd2 {[%clk 0:02:20.1]} 16... g6 {[%clk 0:00:36.4]}
17. a4 {[%clk 0:02:12.9]} 17... Bg7 {[%clk 0:00:36.4]} 18. axb5 {[%clk 0:02:14]}
18... axb5 {[%clk 0:00:37.8]} 19. fxe5 {[%clk 0:02:14.7]} 19... dxe5 {[%clk
0:00:36.2]} 20. Qg4 {[%clk 0:02:10.5]} 20... Qd6 {[%clk 0:00:24.1]} 21. Ra7
{[%clk 0:01:57.8]} 21... f5 {[%clk 0:00:24.9]} 22. Qb4 {[%clk 0:01:52.9]} 22...
Qxb4 {[%clk 0:00:17.5]} 23. cxb4 {[%clk 0:01:54.8]} 23... Bf6 {[%clk 0:00:11.3]}
24. d6 {[%clk 0:01:56.1]} 24... Nc6 {[%clk 0:00:12.5]} 25. d7+ {[%clk
0:01:56.8]} 1-0

[Event "*** Qualifier 1: Titled Tuesday 3|2 Blitz"]
[Site "Chess.com"]
[Date "2017.04.04"]
[Round "1"]
[White "capatl"]
[Black "daro94"]
[Result "0-1"]
[WhiteElo "2346"]
[BlackElo "2705"]
[TimeControl "180+2"]
[EndTime "13:06:18 PDT"]
[Termination "daro94 won by resignation"]

1. c4 {[%clk 0:03:02]} 1... g6 {[%clk 0:03:00.6]} 2. Nc3 {[%clk 0:03:00.6]} 2...
Bg7 {[%clk 0:03:00.7]} 3. Nf3 {[%clk 0:02:56.5]} 3... Nf6 {[%clk 0:03:01]} 4. g3
{[%clk 0:02:53.4]} 4... c6 {[%clk 0:03:01.6]} 5. Bg2 {[%clk 0:02:53.3]} 5... O-O
{[%clk 0:03:02.5]} 6. O-O {[%clk 0:02:52.8]} 6... d6 {[%clk 0:03:03.4]} 7. Rb1
{[%clk 0:02:50]} 7... e5 {[%clk 0:03:03.5]} 8. d3 {[%clk 0:02:49.8]} 8... Re8
{[%clk 0:02:55.6]} 9. b4 {[%clk 0:02:45.5]} 9... h6 {[%clk 0:02:50.9]} 10. b5
{[%clk 0:02:43.9]} 10... d5 {[%clk 0:02:48.9]} 11. bxc6 {[%clk 0:02:42.5]} 11...
bxc6 {[%clk 0:02:50.3]} 12. cxd5 {[%clk 0:02:40.6]} 12... cxd5 {[%clk
0:02:52.2]} 13. d4 {[%clk 0:02:19.3]} 13... e4 {[%clk 0:02:50.2]} 14. Ne5 {[%clk
0:02:18.4]} 14... Be6 {[%clk 0:02:43.6]} 15. Qa4 {[%clk 0:02:14]} 15... Nfd7
{[%clk 0:02:39.5]} 16. Nxd7 {[%clk 0:02:00.7]} 16... Nxd7 {[%clk 0:02:38.2]} 17.
e3 {[%clk 0:01:59.6]} 17... Nb6 {[%clk 0:02:30.4]} 18. Qb3 {[%clk 0:01:55.7]}
18... Nc4 {[%clk 0:02:25.1]} 19. Rd1 {[%clk 0:01:53.3]} 19... Qa5 {[%clk
0:02:17.2]} 20. Bf1 {[%clk 0:01:51.1]} 20... Rec8 {[%clk 0:02:10.3]} 21. Na4
{[%clk 0:00:44.3]} 21... Bg4 {[%clk 0:02:05.2]} 22. Nc5 {[%clk 0:00:32.7]} 22...
Bxd1 {[%clk 0:01:47]} 23. Qxd1 {[%clk 0:00:32.1]} 23... Rab8 {[%clk 0:01:44.5]}
24. Ra1 {[%clk 0:00:26.6]} 24... Qc3 {[%clk 0:01:41.2]} 0-1

[Event "*** Qualifier 1: Titled Tuesday 3|2 Blitz"]
[Site "Chess.com"]
[Date "2017.04.04"]
[Round "1"]
[White "fpawn"]
[Black "DuleMudule"]
[Result "0-1"]
[WhiteElo "2272"]
[BlackElo "2592"]
[TimeControl "180+2"]
[EndTime "13:06:22 PDT"]
[Termination "DuleMudule won by resignation"]

1. e4 {[%clk 0:03:02]} 1... c5 {[%clk 0:03:00.3]} 2. Nc3 {[%clk 0:03:02.5]} 2...
Nc6 {[%clk 0:03:01.4]} 3. g3 {[%clk 0:03:03.9]} 3... g6 {[%clk 0:03:01.3]} 4.
Bg2 {[%clk 0:03:05.8]} 4... Bg7 {[%clk 0:03:02.9]} 5. d3 {[%clk 0:03:07.1]} 5...
d6 {[%clk 0:03:04.5]} 6. Be3 {[%clk 0:03:07.9]} 6... b6 {[%clk 0:03:06]} 7. f4
{[%clk 0:03:08.4]} 7... Bb7 {[%clk 0:03:07.2]} 8. Nf3 {[%clk 0:03:08.8]} 8...
Qd7 {[%clk 0:03:07.9]} 9. O-O {[%clk 0:03:09.6]} 9... Nh6 {[%clk 0:03:08.7]} 10.
h3 {[%clk 0:03:09.8]} 10... f5 {[%clk 0:03:09.7]} 11. Ng5 {[%clk 0:03:04.1]}
11... Nd4 {[%clk 0:03:06.7]} 12. Qd2 {[%clk 0:03:04]} 12... O-O {[%clk
0:03:05.4]} 13. Nd1 {[%clk 0:03:04.8]} 13... e6 {[%clk 0:03:01.6]} 14. c3 {[%clk
0:03:05.4]} 14... Nc6 {[%clk 0:03:02.4]} 15. Bf2 {[%clk 0:02:59.6]} 15... Rae8
{[%clk 0:02:58.5]} 16. Ne3 {[%clk 0:02:58]} 16... Nf7 {[%clk 0:02:58.3]} 17.
Nxf7 {[%clk 0:02:58]} 17... Qxf7 {[%clk 0:03:00.2]} 18. a3 {[%clk 0:02:54.9]}
18... h6 {[%clk 0:02:57.3]} 19. Rae1 {[%clk 0:02:55.2]} 19... Kh7 {[%clk
0:02:58.3]} 20. Kh1 {[%clk 0:02:42.6]} 20... Na5 {[%clk 0:02:49.9]} 21. Bg1
{[%clk 0:02:41.5]} 21... d5 {[%clk 0:02:46.4]} 22. e5 {[%clk 0:02:39.6]} 22...
d4 {[%clk 0:02:45.9]} 23. cxd4 {[%clk 0:02:40.5]} 23... Nb3 {[%clk 0:02:46.4]}
24. Qd1 {[%clk 0:02:31]} 24... Nxd4 {[%clk 0:02:47.1]} 25. Nc4 {[%clk
0:02:23.4]} 25... Bxg2+ {[%clk 0:02:46.6]} 26. Kxg2 {[%clk 0:02:24.5]} 26...
Qb7+ {[%clk 0:02:42.1]} 27. Kh2 {[%clk 0:02:25.6]} 27... Rd8 {[%clk 0:02:43.2]}
28. Nd6 {[%clk 0:02:25.2]} 28... Qd5 {[%clk 0:02:43.2]} 29. Bxd4 {[%clk
0:02:24.6]} 29... Qxd4 {[%clk 0:02:43.5]} 30. Qd2 {[%clk 0:02:25.6]} 30... Rd7
{[%clk 0:02:43.5]} 31. Re2 {[%clk 0:02:24.1]} 31... Rfd8 {[%clk 0:02:44.3]} 32.
Qe3 {[%clk 0:02:25.5]} 32... Qxe3 {[%clk 0:02:43.3]} 33. Rxe3 {[%clk 0:02:26.3]}
33... Bf8 {[%clk 0:02:45]} 34. Rfe1 {[%clk 0:02:24.8]} 34... Kg7 {[%clk
0:02:31.9]} 35. h4 {[%clk 0:02:22.4]} 35... Be7 {[%clk 0:02:26.6]} 36. a4 {[%clk
0:02:18.6]} 36... g5 {[%clk 0:02:25.8]} 37. hxg5 {[%clk 0:02:15.8]} 37... hxg5
{[%clk 0:02:27.7]} 38. Kg2 {[%clk 0:02:12.7]} 38... g4 {[%clk 0:02:25.8]} 39.
Kf2 {[%clk 0:02:10.9]} 39... Rh8 {[%clk 0:02:18.6]} 40. Kg2 {[%clk 0:02:11.8]}
40... Rhd8 {[%clk 0:02:13.8]} 41. Kf2 {[%clk 0:02:11.7]} 41... Bxd6 {[%clk
0:02:11]} 42. exd6 {[%clk 0:02:12.3]} 42... Rxd6 {[%clk 0:02:12.9]} 43. Rxe6
{[%clk 0:02:12.4]} 43... Rxe6 {[%clk 0:01:58]} 44. Rxe6 {[%clk 0:02:12]} 44...
Rxd3 {[%clk 0:01:58.3]} 45. Re7+ {[%clk 0:02:12.3]} 45... Kf6 {[%clk 0:01:52.1]}
46. Rxa7 {[%clk 0:02:12.9]} 46... Rd2+ {[%clk 0:01:51.1]} 47. Kf1 {[%clk
0:02:11.6]} 47... Rxb2 {[%clk 0:01:52.4]} 48. Ra6 {[%clk 0:02:12.4]} 48... Ke7
{[%clk 0:01:52]} 49. a5 {[%clk 0:02:11.5]} 49... bxa5 {[%clk 0:01:50.1]} 50.
Rxa5 {[%clk 0:02:12.5]} 50... Kd6 {[%clk 0:01:51.7]} 51. Ra8 {[%clk 0:02:09.7]}
51... c4 {[%clk 0:01:50.9]} 52. Rf8 {[%clk 0:02:09.4]} 52... c3 {[%clk
0:01:46.7]} 53. Ke1 {[%clk 0:02:09.7]} 53... Rb1+ {[%clk 0:01:46.7]} 0-1

[Event "*** Qualifier 1: Titled Tuesday 3|2 Blitz"]
[Site "Chess.com"]
[Date "2017.04.04"]
[Round "1"]
[White "saraswathii"]
[Black "MaestroASK"]
[Result "0-1"]
[WhiteElo "2161"]
[BlackElo "2474"]
[TimeControl "180+2"]
[EndTime "13:06:45 PDT"]
[Termination "MaestroASK won by resignation"]

1. e4 {[%clk 0:03:02]} 1... d6 {[%clk 0:03:02]} 2. d3 {[%clk 0:03:02.7]} 2... g6
{[%clk 0:03:03.2]} 3. Nf3 {[%clk 0:03:03.5]} 3... e5 {[%clk 0:03:03.6]} 4. g3
{[%clk 0:03:04.6]} 4... Bg7 {[%clk 0:03:02.3]} 5. Bg2 {[%clk 0:03:05.4]} 5...
Nd7 {[%clk 0:03:02.6]} 6. O-O {[%clk 0:03:06.1]} 6... Nh6 {[%clk 0:03:01.7]} 7.
Be3 {[%clk 0:03:04.5]} 7... O-O {[%clk 0:03:01.2]} 8. Nh4 {[%clk 0:03:04.3]}
8... f5 {[%clk 0:02:59.6]} 9. exf5 {[%clk 0:02:56.7]} 9... Nxf5 {[%clk 0:02:57]}
10. Nxf5 {[%clk 0:02:55.8]} 10... gxf5 {[%clk 0:02:57.5]} 11. Nc3 {[%clk
0:02:53.3]} 11... f4 {[%clk 0:02:52.5]} 12. gxf4 {[%clk 0:02:50.4]} 12... exf4
{[%clk 0:02:52.3]} 13. Bd2 {[%clk 0:02:51.2]} 13... c6 {[%clk 0:02:51.9]} 14.
Qh5 {[%clk 0:02:50.1]} 14... d5 {[%clk 0:02:40.1]} 15. Rae1 {[%clk 0:02:40.1]}
15... Qf6 {[%clk 0:02:23.5]} 16. f3 {[%clk 0:02:17.9]} 16... Qg6 {[%clk
0:02:18.2]} 17. Qxg6 {[%clk 0:02:01.3]} 17... hxg6 {[%clk 0:02:18]} 18. Re2
{[%clk 0:01:52.6]} 18... g5 {[%clk 0:02:11.1]} 19. Rfe1 {[%clk 0:01:51.9]} 19...
Nf6 {[%clk 0:02:10.6]} 20. Re5 {[%clk 0:01:50.1]} 20... Nh7 {[%clk 0:02:08.3]}
21. Re7 {[%clk 0:01:49.6]} 21... Bf6 {[%clk 0:02:07.9]} 22. R7e2 {[%clk
0:01:48.5]} 22... Bf5 {[%clk 0:02:03.5]} 23. Kh1 {[%clk 0:01:37.2]} 23... Rf7
{[%clk 0:02:02.3]} 24. Rg1 {[%clk 0:01:29.6]} 24... Rg7 {[%clk 0:02:00.6]} 25.
h4 {[%clk 0:01:27.8]} 25... Nf8 {[%clk 0:01:58.4]} 26. hxg5 {[%clk 0:01:26.1]}
26... Rh7+ {[%clk 0:01:58.1]} 27. Bh3 {[%clk 0:01:25.5]} 27... Rxh3+ {[%clk
0:01:57.2]} 28. Kg2 {[%clk 0:01:23.3]} 28... Rg3+ {[%clk 0:01:55]} 29. Kh2
{[%clk 0:01:21.4]} 29... Rxg1 {[%clk 0:01:54.2]} 30. Kxg1 {[%clk 0:01:23.3]}
30... Bd4+ {[%clk 0:01:44.8]} 31. Kg2 {[%clk 0:01:23.8]} 31... Ng6 {[%clk
0:01:44.6]} 32. Be1 {[%clk 0:01:17]} 32... Kf7 {[%clk 0:01:42.2]} 33. Nd1 {[%clk
0:01:11.9]} 33... Rh8 {[%clk 0:01:36]} 0-1

[Event "*** Qualifier 1: Titled Tuesday 3|2 Blitz"]
[Site "Chess.com"]
[Date "2017.04.04"]
[Round "1"]
[White "Marcus_Harvey"]
[Black "michaelk123"]
[Result "1-0"]
[WhiteElo "2491"]
[BlackElo "2197"]
[TimeControl "180+2"]
[EndTime "13:06:51 PDT"]
[Termination "Marcus_Harvey won by resignation"]

1. Nf3 {[%clk 0:03:02]} 1... Nf6 {[%clk 0:02:57.6]} 2. b3 {[%clk 0:03:03.1]}
2... g6 {[%clk 0:02:54.6]} 3. Bb2 {[%clk 0:03:04.3]} 3... Bg7 {[%clk 0:02:56]}
4. e3 {[%clk 0:03:05.7]} 4... O-O {[%clk 0:02:56.9]} 5. Be2 {[%clk 0:03:07.1]}
5... d6 {[%clk 0:02:52.1]} 6. d4 {[%clk 0:03:07.3]} 6... c5 {[%clk 0:02:52.5]}
7. dxc5 {[%clk 0:03:07.8]} 7... Qa5+ {[%clk 0:02:52.3]} 8. Nbd2 {[%clk
0:03:05.4]} 8... Qxc5 {[%clk 0:02:50.3]} 9. O-O {[%clk 0:03:04.7]} 9... b6
{[%clk 0:02:38.3]} 10. Bxf6 {[%clk 0:02:59]} 10... Bxf6 {[%clk 0:02:35.3]} 11.
Ne4 {[%clk 0:02:59.7]} 11... Qf5 {[%clk 0:02:06.8]} 12. Nxf6+ {[%clk 0:02:59.7]}
12... Qxf6 {[%clk 0:02:08.7]} 13. Qd5 {[%clk 0:02:59.7]} 13... Qc3 {[%clk
0:01:48.8]} 14. Qxa8 {[%clk 0:02:54.9]} 14... Nc6 {[%clk 0:01:28]} 15. Nd4
{[%clk 0:02:52.9]} 15... Nxd4 {[%clk 0:01:09.1]} 16. exd4 {[%clk 0:02:53.8]}
16... Bg4 {[%clk 0:01:09.9]} 17. Qe4 {[%clk 0:02:50.9]} 17... Bf5 {[%clk
0:00:56.4]} 18. Qxe7 {[%clk 0:02:50.4]} 18... h5 {[%clk 0:00:50.8]} 19. Bc4
{[%clk 0:02:49.4]} 19... h4 {[%clk 0:00:49.3]} 20. h3 {[%clk 0:02:47.4]} 20...
Bxh3 {[%clk 0:00:41.5]} 21. gxh3 {[%clk 0:02:47.2]} 21... Qxh3 {[%clk
0:00:43.1]} 22. Qg5 {[%clk 0:02:45.7]} 22... Kg7 {[%clk 0:00:40.5]} 23. Qg2
{[%clk 0:02:44.3]} 23... Qf5 {[%clk 0:00:40.3]} 24. Bd3 {[%clk 0:02:44.4]} 24...
Qf6 {[%clk 0:00:39.2]} 25. Rae1 {[%clk 0:02:33.2]} 25... Rh8 {[%clk 0:00:38.7]}
26. Qg4 {[%clk 0:02:24.3]} 26... Rh5 {[%clk 0:00:35.5]} 27. f4 {[%clk
0:02:19.1]} 27... Qxd4+ {[%clk 0:00:34.4]} 28. Kh2 {[%clk 0:02:19]} 28... h3
{[%clk 0:00:32.5]} 29. Qf3 {[%clk 0:02:08.6]} 29... Kh6 {[%clk 0:00:21.2]} 30.
Rg1 {[%clk 0:02:08.8]} 30... Rh4 {[%clk 0:00:20.5]} 31. Rg4 {[%clk 0:01:48.1]}
31... Rxg4 {[%clk 0:00:20.5]} 32. Qxg4 {[%clk 0:01:50]} 32... Qf2+ {[%clk
0:00:21.7]} 33. Kxh3 {[%clk 0:01:51.5]} 33... Qxe1 {[%clk 0:00:17.8]} 34. Qh4+
{[%clk 0:01:52.9]} 34... Qxh4+ {[%clk 0:00:19.2]} 35. Kxh4 {[%clk 0:01:54.8]}
35... f6 {[%clk 0:00:20]} 36. Kg4 {[%clk 0:01:56]} 36... f5+ {[%clk 0:00:20.4]}
37. Bxf5 {[%clk 0:01:55.3]} 1-0

[Event "*** Qualifier 1: Titled Tuesday 3|2 Blitz"]
[Site "Chess.com"]
[Date "2017.04.04"]
[Round "1"]
[White "GMMelik"]
[Black "SmarterChess"]
[Result "1-0"]
[WhiteElo "2474"]
[BlackElo "2155"]
[TimeControl "180+2"]
[EndTime "13:06:51 PDT"]
[Termination "GMMelik won by checkmate"]

1. d4 {[%clk 0:03:02]} 1... Nf6 {[%clk 0:02:54.2]} 2. Nf3 {[%clk 0:03:02.6]}
2... d5 {[%clk 0:02:54.1]} 3. Bf4 {[%clk 0:03:03.4]} 3... e6 {[%clk 0:02:51]} 4.
e3 {[%clk 0:03:04.2]} 4... Bd6 {[%clk 0:02:38.3]} 5. Bg3 {[%clk 0:03:05]} 5...
O-O {[%clk 0:02:30.4]} 6. Nbd2 {[%clk 0:03:04.6]} 6... c5 {[%clk 0:02:24.9]} 7.
c3 {[%clk 0:03:04.9]} 7... Nc6 {[%clk 0:02:24.2]} 8. Bd3 {[%clk 0:03:04.9]} 8...
Bxg3 {[%clk 0:02:06.4]} 9. hxg3 {[%clk 0:03:05.3]} 9... Qd6 {[%clk 0:01:54.6]}
10. g4 {[%clk 0:02:25.2]} 10... e5 {[%clk 0:01:18.9]} 11. g5 {[%clk 0:02:21.4]}
11... e4 {[%clk 0:01:17.6]} 12. dxc5 {[%clk 0:02:14.4]} 12... Qxc5 {[%clk
0:01:09.1]} 13. gxf6 {[%clk 0:02:10.3]} 13... exd3 {[%clk 0:01:02.5]} 14. Ng5
{[%clk 0:02:04.4]} 14... Bf5 {[%clk 0:00:58.7]} 15. Nxh7 {[%clk 0:01:37.3]}
15... Rfe8 {[%clk 0:00:58.2]} 16. Qh5 {[%clk 0:01:35.1]} 16... Rxe3+ {[%clk
0:00:24.6]} 17. fxe3 {[%clk 0:01:34]} 17... Qxe3+ {[%clk 0:00:26.5]} 18. Kf1
{[%clk 0:01:34.6]} 18... Bg6 {[%clk 0:00:19.5]} 19. Qg5 {[%clk 0:01:26.2]} 19...
Qe2+ {[%clk 0:00:17.9]} 20. Kg1 {[%clk 0:01:26.9]} 20... Re8 {[%clk 0:00:17.1]}
21. Rh3 {[%clk 0:01:03.9]} 21... Re5 {[%clk 0:00:17.8]} 22. Qf4 {[%clk 0:01:01]}
22... Rf5 {[%clk 0:00:17.9]} 23. Qd6 {[%clk 0:00:52.8]} 23... Qxd2 {[%clk
0:00:12.6]} 24. Qf8# {[%clk 0:00:49.7]} 1-0

[Event "*** Qualifier 1: Titled Tuesday 3|2 Blitz"]
[Site "Chess.com"]
[Date "2017.04.04"]
[Round "1"]
[White "nonscitis"]
[Black "AnimationDomination"]
[Result "1-0"]
[WhiteElo "2367"]
[BlackElo "1764"]
[TimeControl "180+2"]
[EndTime "13:06:51 PDT"]
[Termination "nonscitis won by checkmate"]

1. e4 {[%clk 0:03:02]} 1... c5 {[%clk 0:03:00.6]} 2. Nf3 {[%clk 0:03:01.3]} 2...
d6 {[%clk 0:03:01.2]} 3. d4 {[%clk 0:03:00.8]} 3... cxd4 {[%clk 0:03:02.2]} 4.
Nxd4 {[%clk 0:03:02]} 4... Nf6 {[%clk 0:03:03.7]} 5. Nc3 {[%clk 0:03:02.4]} 5...
a6 {[%clk 0:03:05]} 6. Bg5 {[%clk 0:03:01.5]} 6... e6 {[%clk 0:03:06.1]} 7. Qe2
{[%clk 0:02:54.8]} 7... Be7 {[%clk 0:03:01.4]} 8. O-O-O {[%clk 0:02:54.2]} 8...
Qc7 {[%clk 0:03:01.3]} 9. f4 {[%clk 0:02:48.5]} 9... Nbd7 {[%clk 0:02:58.3]} 10.
Kb1 {[%clk 0:02:21.5]} 10... b5 {[%clk 0:02:57.3]} 11. Bxf6 {[%clk 0:02:12.7]}
11... Nxf6 {[%clk 0:02:54.8]} 12. e5 {[%clk 0:02:11.6]} 12... dxe5 {[%clk
0:02:54.1]} 13. fxe5 {[%clk 0:02:11.5]} 13... Nd7 {[%clk 0:02:54.5]} 14. Re1
{[%clk 0:01:57.8]} 14... Bb4 {[%clk 0:02:40.7]} 15. Qh5 {[%clk 0:01:52]} 15...
O-O {[%clk 0:02:23.5]} 16. Re3 {[%clk 0:01:32]} 16... g6 {[%clk 0:02:06.2]} 17.
Qg5 {[%clk 0:01:11.5]} 17... Rd8 {[%clk 0:01:32.3]} 18. Bd3 {[%clk 0:01:07.8]}
18... Bxc3 {[%clk 0:00:54.3]} 19. bxc3 {[%clk 0:00:51.9]} 19... Bb7 {[%clk
0:00:43.3]} 20. Nxe6 {[%clk 0:00:45.3]} 20... fxe6 {[%clk 0:00:41.2]} 21. Bxg6
{[%clk 0:00:45.8]} 21... Nf8 {[%clk 0:00:31]} 22. Bxh7+ {[%clk 0:00:41.2]} 22...
Kh8 {[%clk 0:00:29.6]} 23. Qg8# {[%clk 0:00:40.9]} 1-0